bitfinex/quotes_SOLUSD_20250821
["timestamp","ask_amount","ask_price","bid_price","bid_amount"]
[1755755557632,14.31559401,188.28,188.27,3.71359669]
[1755755558546,14.31559401,188.28,188.26,3.71359669]
[1755755558758,14.25559401,188.27,188.26,3.71359669]
[1755755562137,14.25559401,188.27,188.25,0.03]
[1755755562462,14.25559401,188.27,188.26,3.71359669]
[1755755563364,13.59559401,188.27,188.26,3.71359669]
[1755755565538,14.25559401,188.27,188.26,3.71359669]
[1755755567392,13.59559401,188.27,188.26,3.71359669]
[1755755570204,0.06,188.28,188.26,4.39359669]
[1755755570413,0.06,188.28,188.27,4.39359669]
[1755755570713,0.06,188.28,188.27,41.27359669]
[1755755570870,0.06,188.28,188.27,41.95359669]
[1755755571488,0.06,188.28,188.27,44.08278569]
[1755755571703,0.06,188.28,188.27,47.79638238]
[1755755572100,0.06,188.28,188.27,44.08278569]
[1755755572279,0.06,188.28,188.27,47.79638238]
[1755755574187,0.06,188.28,188.27,44.08278569]
[1755755581589,0.74,188.28,188.27,43.60690651]
[1755755581784,0.74,188.28,188.27,7.6513142]
[1755755582413,0.74,188.28,188.27,3.71359669]
[1755755582617,0.06,188.28,188.27,4.43359669]
[1755755583424,0.06,188.28,188.27,6.56267269]
[1755755583800,0.74,188.28,188.27,5.84267269]
[1755755584011,14.33559401,188.28,188.26,0.03]
[1755755584225,14.33559401,188.28,188.27,3.71359669]
[1755755586294,13.65559401,188.28,188.27,3.71359669]
[1755755587723,14.33559401,188.28,188.27,3.71359669]
[1755755588299,13.65559401,188.28,188.27,3.71359669]
[1755755589315,13.65559401,188.28,188.26,0.03]
[1755755589522,14.33559401,188.28,188.27,3.71359669]
[1755755589726,13.65559401,188.28,188.27,3.71359669]
[1755755592351,14.33559401,188.28,188.27,3.71359669]
[1755755593061,13.59559401,188.27,188.26,0.03]
[1755755593359,14.27559401,188.27,188.26,0.03]
[1755755593565,14.27559401,188.27,188.26,3.74359669]
[1755755594967,2.83177941,188.28,188.26,3.74359669]
[1755755595149,3.51177941,188.28,188.27,3.71359669]
[1755755595469,3.51177941,188.28,188.26,0.03]
[1755755595641,3.51177941,188.28,188.27,3.71359669]
[1755755596159,2.83177941,188.28,188.27,3.71359669]
[1755755597269,3.51177941,188.28,188.26,0.03]
[1755755597469,3.51177941,188.28,188.27,3.71359669]
[1755755600384,3.51177941,188.28,188.26,0.03]
[1755755600560,0.68,188.27,188.26,0.03]
[1755755600759,0.68,188.27,188.26,3.74359669]
[1755755603799,13.59559401,188.27,188.26,0.03]
[1755755603975,13.59559401,188.27,188.26,3.74359669]
[1755755604174,0.06,188.28,188.26,3.74359669]
[1755755604487,0.76,188.28,188.27,3.71359669]
[1755755605698,0.06,188.28,188.27,3.71359669]
[1755755606108,0.06,188.28,188.27,4.36359669]
[1755755610077,0.06,188.28,188.27,29.71359669]
[1755755610287,0.06,188.28,188.27,30.36359669]
[1755755611598,0.06,188.28,188.27,4.36359669]
[1755755611902,0.06,188.28,188.27,8.07719338]
[1755755612203,0.06,188.28,188.27,10.20626838]
[1755755618420,0.06,188.28,188.27,90.00626838]
[1755755621917,0.76,188.28,188.27,85.64267169]
[1755755622243,0.76,188.28,188.27,2.129075]
[1755755622446,0.76,188.28,188.27,3.71359669]
[1755755622731,0.06,188.28,188.27,3.71359669]
[1755755623417,0.06,188.28,188.26,63.55]
[1755755623621,0.06,188.28,188.27,5.84289869]
[1755755624637,0.76,188.28,188.27,3.71359669]
[1755755626530,0.06,188.28,188.27,3.71359669]
[1755755627518,0.06,188.28,188.27,4.36359669]
[1755755627716,0.06,188.28,188.27,3.71359669]
[1755755628738,0.76,188.28,188.26,63.55]
[1755755628919,0.76,188.28,188.26,0.03]
[1755755629334,0.7,188.27,188.26,0.03]
[1755755630750,14.29559401,188.27,188.26,0.03]
[1755755631044,18.0091907,188.27,188.26,0.03]
[1755755632239,14.29559401,188.27,188.26,0.03]
[1755755632447,18.0091907,188.27,188.26,0.03]
[1755755635459,14.29559401,188.27,188.26,0.03]
[1755755635624,17.06762453,188.27,188.26,0.03]
[1755755638664,20.78122122,188.27,188.26,0.03]
[1755755638833,16.36762453,188.27,188.26,0.03]
[1755755639018,2.77203052,188.27,188.26,0.03]
[1755755639223,0.06,188.28,188.26,0.69]
[1755755639445,14.36559401,188.28,188.26,0.03]
[1755755639631,13.65559401,188.28,188.26,0.69]
[1755755641749,13.65559401,188.28,188.26,0.03]
[1755755642541,14.36559401,188.28,188.26,0.03]
[1755755643054,0.71,188.27,188.26,0.03]
[1755755643251,14.30559401,188.27,188.26,0.03]
[1755755644747,18.0191907,188.27,188.26,0.03]
[1755755645958,14.30559401,188.27,188.26,0.03]
[1755755646157,13.59559401,188.27,188.26,0.03]
[1755755647354,0.06,188.28,188.26,0.69]
[1755755648348,0.06,188.28,188.27,0.66]
[1755755648550,0.06,188.28,188.27,4.37359669]
[1755755650338,0.06,188.28,188.27,30.37359669]
[1755755651341,0.06,188.28,188.27,4.37359669]
[1755755663655,0.77,188.28,188.27,3.71359669]
[1755755664085,0.06,188.28,188.27,3.71359669]
[1755755665878,0.06,188.28,188.27,4.43359669]
[1755755666477,0.06,188.28,188.27,3.71359669]
[1755755667177,0.06,188.28,188.26,0.03]
[1755755667376,0.77,188.28,188.27,29.71359669]
[1755755667680,0.06,188.28,188.27,29.71359669]
[1755755668048,0.77,188.28,188.27,29.71359669]
[1755755669866,0.06,188.28,188.27,29.71359669]
[1755755671893,0.06,188.28,188.27,30.43359669]
[1755755673271,0.06,188.28,188.27,26.72]
[1755755673480,0.06,188.28,188.27,30.43359669]
[1755755675374,0.06,188.28,188.27,26.72]
[1755755675576,0.06,188.28,188.27,30.43359669]
[1755755676103,0.77,188.28,188.26,0.03]
[1755755676887,0.06,188.28,188.27,26.0]
[1755755677470,0.77,188.28,188.27,26.0]
[1755755677672,0.06,188.28,188.27,26.0]
[1755755677878,0.06,188.28,188.27,28.37423415]
[1755755678360,0.06,188.28,188.27,30.42823609]
[1755755678688,0.06,188.28,188.27,29.70823609]
[1755755682804,0.06,188.28,188.27,26.0]
[1755755682992,0.77,188.28,188.27,26.0]
[1755755683192,0.06,188.28,188.27,29.70823609]
[1755755683678,0.06,188.28,188.27,26.0]
[1755755684211,0.06,188.28,188.27,29.70823609]
[1755755685401,0.06,188.28,188.27,30.42823609]
[1755755687388,0.06,188.28,188.27,67.86823609]
[1755755688686,0.06,188.28,188.27,67.14823609]
[1755755689418,0.06,188.28,188.27,63.44]
[1755755689622,0.06,188.28,188.27,29.70823609]
[1755755693029,0.77,188.28,188.26,3.73823609]
[1755755693197,0.67,188.27,188.26,3.73823609]
[1755755693717,0.06,188.28,188.26,3.73823609]
[1755755693902,0.06,188.28,188.26,0.03]
[1755755694091,0.73,188.28,188.26,3.73823609]
[1755755694929,0.73,188.28,188.27,3.70823609]
[1755755695228,0.06,188.28,188.27,4.36823609]
[1755755696808,0.06,188.28,188.27,67.80823609]
[1755755698529,0.06,188.28,188.27,67.14823609]
[1755755698730,0.06,188.28,188.27,67.80823609]
[1755755700946,0.06,188.28,188.27,68.09255923]
[1755755701106,0.06,188.28,188.27,71.80079532]
[1755755702712,0.06,188.28,188.27,77.112316]
[1755755703032,0.06,188.28,188.27,156.912316]
[1755755705645,0.06,188.28,188.27,153.72919032]
[1755755706744,0.06,188.28,188.27,150.02095423]
[1755755706952,0.06,188.28,188.27,111.63663109]
[1755755707133,0.06,188.28,188.27,41.12823609]
[1755755707134,0.73,188.28,188.27,41.12823609]
[1755755707842,0.73,188.28,188.27,37.42]
[1755755708146,0.73,188.28,188.26,37.45]
[1755755708351,0.73,188.28,188.26,0.03]
[1755755708548,4.43823609,188.28,188.26,0.03]
[1755755708843,0.73,188.28,188.26,0.03]
[1755755709049,0.67,188.27,188.26,0.03]
[1755755710635,0.06,188.28,188.26,3.73823609]
[1755755710950,0.73,188.28,188.27,3.70823609]
[1755755711323,0.06,188.28,188.27,29.70823609]
[1755755711528,0.06,188.28,188.27,67.78823609]
[1755755713846,0.06,188.28,188.27,63.42]
[1755755714047,0.06,188.28,188.27,67.12823609]
[1755755716660,0.06,188.28,188.27,67.78823609]
[1755755716829,0.06,188.28,188.27,68.07255923]
[1755755717837,0.06,188.28,188.27,70.20129523]
[1755755719955,0.06,188.28,188.27,73.90953132]
[1755755720449,0.06,188.28,188.27,70.20129523]
[1755755722040,0.06,188.28,188.27,150.00129523]
[1755755726777,0.06,188.28,188.27,149.34129523]
[1755755727080,0.06,188.28,188.27,146.92823609]
[1755755727879,0.06,188.28,188.27,147.92255923]
[1755755728449,0.06,188.28,188.27,108.21305814]
[1755755728768,0.76,188.28,188.27,120.92823609]
[1755755730258,0.06,188.28,188.27,121.92255923]
[1755755731354,0.06,188.28,188.27,121.21255923]
[1755755732493,0.06,188.28,188.27,121.92255923]
[1755755732862,0.06,188.28,188.27,121.21255923]
[1755755733279,0.76,188.28,188.27,121.21255923]
[1755755733498,0.76,188.28,188.27,117.50432314]
[1755755733691,0.76,188.28,188.27,121.21255923]
[1755755734200,0.06,188.28,188.27,121.21255923]
[1755755735495,0.06,188.28,188.27,121.19255923]
[1755755736467,0.06,188.28,188.27,125.61079532]
[1755755738107,0.06,188.28,188.27,131.36868392]
[1755755738286,0.06,188.29,188.28,39.17436078]
[1755755738486,0.06,188.32,188.31,26.0]
[1755755738683,0.06,188.32,188.31,67.39255923]
[1755755738892,0.06,188.32,188.31,68.10255923]
[1755755739189,0.06,188.32,188.31,70.87260523]
[1755755740991,0.7,188.36,188.35,3.70823609]
[1755755741177,0.7,188.36,188.35,41.10823609]
[1755755743414,0.7,188.36,188.32,0.28432314]
[1755755743710,0.7,188.36,188.31,34.5279346]
[1755755743711,0.76,188.36,188.34,3.70823609]
[1755755745590,0.76,188.36,188.32,3.70823609]
[1755755746107,0.76,188.36,188.33,3.70823609]
[1755755747202,0.76,188.36,188.3,42.63199256]
[1755755747713,0.76,188.36,188.33,3.70823609]
[1755755748089,0.76,188.36,188.34,3.70823609]
[1755755748695,0.7,188.35,188.34,3.70823609]
[1755755749780,0.06,188.36,188.34,3.70823609]
[1755755750019,0.06,188.36,188.35,3.70823609]
[1755755750312,0.06,188.36,188.35,42.10255923]
[1755755750518,0.06,188.36,188.35,41.39255923]
[1755755751036,0.06,188.36,188.35,45.31929014]
[1755755752286,0.06,188.36,188.35,45.034967]
[1755755752804,0.06,188.36,188.35,45.744967]
[1755755753005,0.06,188.36,188.35,45.034967]
[1755755754305,0.72,188.36,188.35,45.034967]
[1755755754812,0.06,188.36,188.35,45.034967]
[1755755755734,0.06,188.36,188.35,41.10823609]
[1755755755943,0.06,188.36,188.35,45.7337295]
[1755755757123,0.06,188.36,188.35,45.0337295]
[1755755758125,0.06,188.36,188.35,45.7337295]
[1755755759938,0.06,188.36,188.35,46.01805264]
[1755755760435,0.06,188.36,188.35,129.52628873]
[1755755761008,0.06,188.36,188.35,155.52628873]
[1755755762231,0.06,188.4,188.35,155.52628873]
[1755755762422,0.72,188.4,188.39,3.70823609]
[1755755762738,0.72,188.4,188.39,45.0137295]
[1755755763128,0.72,188.4,188.39,7.6337295]
[1755755763309,0.72,188.4,188.39,45.0137295]
[1755755764712,0.06,188.4,188.39,45.00755808]
[1755755766013,0.72,188.4,188.39,45.00755808]
[1755755767230,0.06,188.4,188.39,45.00755808]
[1755755767618,2.76891095,188.45,188.42,26.0]
[1755755767923,0.66,188.45,188.44,3.70823609]
[1755755768123,0.66,188.45,188.44,7.62755808]
[1755755769442,0.76,188.47,188.44,7.62755808]
[1755755769646,0.76,188.47,188.46,3.70823609]
[1755755769844,0.1,188.47,188.46,7.62755808]
[1755755770544,0.76,188.47,188.46,7.62755808]
[1755755771761,0.76,188.47,188.46,3.91932199]
[1755755772139,0.76,188.47,188.41,37.38]
[1755755772327,17.3038301,188.46,188.42,3.91129922]
[1755755772525,17.3038301,188.46,188.39,26.0]
[1755755772526,4.36823609,188.45,188.43,3.91129922]
[1755755772838,3.70823609,188.46,188.44,3.91129922]
[1755755773041,3.70823609,188.46,188.45,3.91129922]
[1755755773344,3.70823609,188.46,188.42,3.91129922]
[1755755773539,3.70823609,188.46,188.41,3.70823609]
[1755755773540,13.69559401,188.47,188.43,3.91129922]
[1755755773740,3.70823609,188.46,188.44,3.91129922]
[1755755773939,0.66,188.45,188.44,3.91129922]
[1755755774132,13.69559401,188.47,188.44,7.6191129]
[1755755774332,0.66,188.46,188.45,3.91087681]
[1755755774732,0.66,188.46,188.45,7.6191129]
[1755755775628,0.1,188.47,188.45,7.6191129]
[1755755775837,0.1,188.47,188.46,3.91087681]
[1755755776458,0.76,188.47,188.46,3.91087681]
[1755755777060,14.35559401,188.47,188.39,64.08]
[1755755777232,0.66,188.46,188.44,3.70823609]
[1755755777436,0.66,188.46,188.45,7.6182732]
[1755755778357,0.66,188.46,188.45,3.91003711]
[1755755780226,13.69559401,188.47,188.45,3.91003711]
[1755755780457,0.1,188.47,188.46,3.91003711]
[1755755780661,0.1,188.47,188.45,3.70823609]
[1755755780858,0.1,188.47,188.46,3.91003711]
[1755755781041,0.76,188.47,188.46,3.91003711]
[1755755782827,0.1,188.47,188.46,3.91003711]
[1755755783048,0.79,188.47,188.46,3.91003711]
[1755755783446,0.79,188.47,188.45,3.70823609]
[1755755783761,0.79,188.47,188.46,3.91186505]
[1755755785037,0.1,188.47,188.46,7.62010114]
[1755755785266,0.1,188.47,188.46,8.31010114]
[1755755785435,0.1,188.47,188.46,7.62010114]
[1755755786149,0.1,188.47,188.46,8.31010114]
[1755755786347,0.1,188.47,188.46,7.62010114]
[1755755786544,0.1,188.47,188.46,8.31010114]
[1755755791171,0.1,188.47,188.46,7.62010114]
[1755755791978,0.79,188.47,188.46,7.62010114]
[1755755792538,0.1,188.47,188.46,7.62010114]
[1755755793062,0.1,188.47,188.46,7.62002777]
[1755755794373,0.1,188.47,188.46,8.31002777]
[1755755794667,0.1,188.47,188.46,7.62002777]
[1755755795356,0.1,188.47,188.46,8.31002777]
[1755755795868,0.1,188.47,188.46,7.62002777]
[1755755796051,0.1,188.47,188.46,7.62315726]
[1755755798556,0.1,188.47,188.46,8.31315726]
[1755755798757,0.1,188.47,188.46,7.62315726]
[1755755799460,0.1,188.47,188.46,8.31315726]
[1755755801685,0.1,188.47,188.46,12.02139335]
[1755755802174,0.1,188.47,188.46,8.10647218]
[1755755802360,0.1,188.47,188.46,12.02375629]
[1755755802558,0.1,188.47,188.46,12.02290986]
[1755755805278,0.1,188.47,188.46,38.02290986]
[1755755805590,0.1,188.47,188.46,38.307233]
[1755755808668,0.1,188.47,188.46,38.30761862]
[1755755809268,0.1,188.47,188.46,75.66761862]
[1755755810773,0.1,188.47,188.46,155.46761862]
[1755755811681,0.1,188.47,188.46,151.55079532]
[1755755811988,0.1,188.47,188.46,155.46809937]
[1755755813882,0.79,188.47,188.46,113.42554014]
[1755755814560,0.79,188.47,188.46,7.62554014]
[1755755815390,0.79,188.47,188.46,3.91730405]
[1755755816069,14.38559401,188.47,188.46,3.91730405]
[1755755820393,18.0938301,188.47,188.46,3.91730405]
[1755755820764,13.59559401,188.46,188.42,3.70823609]
[1755755820991,0.79,188.47,188.44,3.70823609]
[1755755821292,0.79,188.47,188.45,3.92021668]
[1755755821494,0.1,188.47,188.46,3.70823609]
[1755755821985,0.1,188.47,188.45,0.65]
[1755755821986,0.1,188.47,188.45,4.35823609]
[1755755822294,0.79,188.47,188.45,3.70823609]
[1755755823287,0.79,188.47,188.43,0.65]
[1755755823474,0.79,188.47,188.45,3.70823609]
[1755755823997,0.69,188.46,188.41,26.0]
[1755755824301,0.69,188.46,188.43,3.70823609]
[1755755824502,0.69,188.46,188.44,3.70823609]
[1755755824806,0.1,188.47,188.45,3.70823609]
[1755755825403,0.1,188.47,188.45,4.35823609]
[1755755826806,0.1,188.47,188.45,3.70823609]
[1755755827109,0.69,188.46,188.45,3.70823609]
[1755755827504,0.69,188.46,188.44,3.70823609]
[1755755827867,0.1,188.47,188.44,3.70823609]
[1755755828074,0.1,188.47,188.46,3.70823609]
[1755755830097,0.1,188.47,188.46,4.35823609]
[1755755830311,0.1,188.47,188.46,3.70823609]
[1755755831622,0.79,188.47,188.41,0.65]
[1755755831808,18.0938301,188.47,188.42,3.70823609]
[1755755832015,17.4038301,188.47,188.4,80.48]
[1755755832217,0.69,188.46,188.42,3.70823609]
[1755755832725,0.69,188.45,188.42,3.70823609]
[1755755832912,0.69,188.45,188.43,3.70823609]
[1755755834017,0.1,188.47,188.44,3.70823609]
[1755755834187,0.1,188.47,188.45,3.70823609]
[1755755835216,0.69,188.46,188.41,26.0]
[1755755835421,0.69,188.46,188.43,3.70823609]
[1755755836305,0.69,188.45,188.43,29.70823609]
[1755755836515,0.69,188.46,188.43,29.70823609]
[1755755837218,0.69,188.46,188.44,3.70823609]
[1755755837386,13.69559401,188.47,188.44,4.35823609]
[1755755837585,14.38559401,188.47,188.44,3.70823609]
[1755755838421,14.38559401,188.47,188.44,2.36944527]
[1755755838897,0.1,188.47,188.45,2.36944527]
[1755755839098,0.1,188.47,188.46,2.36944527]
[1755755840424,0.1,188.47,188.46,3.70132999]
[1755755841103,0.1,188.47,188.45,0.65]
[1755755841104,0.1,188.47,188.45,4.35132999]
[1755755842006,0.1,188.47,188.45,3.70132999]
[1755755843322,0.66,188.46,188.43,4.35132999]
[1755755844203,0.66,188.46,188.43,3.70132999]
[1755755844399,0.1,188.47,188.44,4.41132999]
[1755755844930,2.76861125,188.46,188.44,4.41132999]
[1755755847643,2.76861125,188.46,188.44,3.70132999]
[1755755848232,2.76861125,188.46,188.44,4.41132999]
[1755755849455,2.76861125,188.46,188.45,0.71]
[1755755849631,2.76861125,188.46,188.45,4.41132999]
[1755755851027,0.1,188.47,188.45,4.41132999]
[1755755851228,0.1,188.47,188.46,4.41132999]
[1755755851627,0.1,188.47,188.46,3.70132999]
[1755755851933,0.1,188.47,188.46,4.41132999]
[1755755852973,0.1,188.47,188.46,3.70132999]
[1755755856362,0.1,188.47,188.46,4.41132999]
[1755755860161,0.1,188.47,188.46,8.11265998]
[1755755861106,0.1,188.47,188.46,10.95236998]
[1755755861775,0.1,188.47,188.46,7.25103999]
[1755755863793,0.1,188.47,188.46,10.95236998]
[1755755864180,0.1,188.47,188.46,2.83971]
[1755755864388,0.1,188.47,188.46,4.41132999]
[1755755864690,0.1,188.47,188.46,8.11265998]
[1755755866881,0.1,188.47,188.46,10.95236998]
[1755755867086,0.1,188.47,188.46,7.25103999]
[1755755867300,0.1,188.47,188.46,4.41132999]
[1755755867763,0.1,188.47,188.46,3.70132999]
[1755755867970,0.1,188.47,188.46,41.04132999]
[1755755874522,0.1,188.47,188.46,39.70835069]
[1755755876324,0.1,188.47,188.46,40.38835069]
[1755755877666,0.1,188.47,188.46,49.86175345]
[1755755878337,0.1,188.47,188.46,45.41886858]
[1755755883048,0.1,188.47,188.46,45.70319172]
[1755755883444,0.1,188.47,188.46,45.41886858]
[1755755883650,0.1,188.47,188.46,41.03943429]
[1755755885549,0.1,188.47,188.46,41.71943429]
[1755755886473,0.1,188.47,188.46,41.03943429]
[1755755888038,0.1,188.47,188.46,45.41886858]
[1755755888238,0.1,188.47,188.46,41.71943429]
[1755755889342,0.1,188.47,188.46,44.73886858]
[1755755889552,0.1,188.47,188.44,3.69943429]
[1755755889553,0.82,188.47,188.44,3.69943429]
[1755755889761,0.82,188.47,188.43,41.01943429]
[1755755889955,0.82,188.47,188.44,3.69943429]
[1755755891870,0.72,188.46,188.42,0.68]
[1755755892050,0.1,188.47,188.43,38.0]
[1755755892672,0.1,188.47,188.46,26.0]
[1755755892862,0.82,188.47,188.46,26.0]
[1755755893169,0.82,188.47,188.46,29.69943429]
[1755755893553,0.1,188.47,188.46,29.69943429]
[1755755893785,0.1,188.47,188.46,3.69943429]
[1755755894676,0.1,188.47,188.46,4.37943429]
[1755755897756,0.1,188.47,188.46,8.07886858]
[1755755898674,0.1,188.47,188.46,8.36319172]
[1755755902367,0.1,188.47,188.46,114.16319172]
[1755755903395,0.1,188.47,188.46,113.48319172]
[1755755903560,0.1,188.47,188.46,105.8]
[1755755903561,0.76,188.47,188.46,105.8]
[1755755903761,0.76,188.47,188.46,146.81943429]
[1755755906571,0.1,188.47,188.46,120.81943429]
[1755755906887,0.76,188.47,188.46,83.49943429]
[1755755907970,0.1,188.47,188.46,83.49943429]
[1755755908390,0.1,188.47,188.46,3.69943429]
[1755755909280,0.76,188.47,188.46,3.69943429]
[1755755911070,0.1,188.47,188.46,3.69943429]
[1755755911473,0.76,188.47,188.46,3.69943429]
[1755755912174,0.1,188.47,188.46,3.69943429]
[1755755912679,0.76,188.47,188.46,3.69943429]
[1755755912863,0.76,188.47,188.45,63.32]
[1755755913066,0.1,188.47,188.46,3.69943429]
[1755755913894,0.76,188.47,188.45,37.32]
[1755755914103,0.1,188.47,188.46,3.69943429]
[1755755916196,0.1,188.47,188.45,37.3]
[1755755916380,0.1,188.47,188.46,3.69943429]
[1755755919273,0.76,188.47,188.46,3.69943429]
[1755755919469,0.76,188.47,188.44,40.99943429]
[1755755920200,0.1,188.47,188.45,3.69943429]
[1755755920396,0.66,188.46,188.44,37.3]
[1755755920705,0.66,188.46,188.45,3.69943429]
[1755755921100,0.1,188.47,188.45,3.69943429]
[1755755921326,0.76,188.47,188.45,3.69943429]
[1755755921525,0.76,188.47,188.46,3.69943429]
[1755755921912,0.66,188.46,188.44,40.99943429]
[1755755922207,0.66,188.46,188.44,3.69943429]
[1755755922712,0.66,188.45,188.44,3.69943429]
[1755755923800,0.76,188.47,188.44,3.69943429]
[1755755924000,0.1,188.47,188.46,3.69943429]
[1755755924942,0.76,188.47,188.46,3.69943429]
[1755755925301,0.76,188.47,188.45,3.69943429]
[1755755925730,0.1,188.47,188.45,3.69943429]
[1755755926041,0.66,188.46,188.45,3.69943429]
[1755755927237,0.76,188.47,188.46,26.0]
[1755755929229,0.1,188.47,188.46,29.69943429]
[1755755929636,0.1,188.47,188.46,30.39943429]
[1755755929934,0.1,188.47,188.46,4.39943429]
[1755755933033,0.82,188.47,188.46,3.69943429]
[1755755933636,0.1,188.47,188.46,3.69943429]
[1755755934024,0.1,188.47,188.45,26.0]
[1755755934338,0.1,188.47,188.46,3.69943429]
[1755755936437,0.82,188.47,188.46,3.69943429]
[1755755937738,3.58850945,188.47,188.45,3.69943429]
[1755755937936,0.72,188.46,188.45,3.69943429]
[1755755939538,0.72,188.46,188.44,63.28]
[1755755939721,0.72,188.46,188.45,3.69943429]
[1755755940237,0.72,188.46,188.4,0.03]
[1755755940443,0.72,188.46,188.43,3.69943429]
[1755755940735,0.72,188.45,188.44,3.69943429]
[1755755941108,2.86850945,188.47,188.44,3.69943429]
[1755755941611,0.72,188.46,188.44,3.69943429]
[1755755944027,0.72,188.46,188.42,0.72]
[1755755944343,0.72,188.45,188.44,3.69943429]
[1755755945532,2.86850945,188.47,188.44,3.69943429]
[1755755945733,0.72,188.46,188.44,3.69943429]
[1755755947453,2.86850945,188.47,188.44,3.69943429]
[1755755947640,2.86850945,188.47,188.46,3.69943429]
[1755755948374,2.86850945,188.47,188.46,2.3689639]
[1755755949242,2.86850945,188.47,188.45,3.0889639]
[1755755950362,2.86850945,188.47,188.46,4.42144838]
[1755755951270,2.86850945,188.47,188.46,0.72]
[1755755951589,2.86850945,188.47,188.45,3.70144838]
[1755755951966,2.86850945,188.47,188.45,4.42144838]
[1755755953994,2.86850945,188.47,188.46,0.72]
[1755755954693,2.86850945,188.47,188.45,4.42144838]
[1755755955189,2.86850945,188.47,188.46,3.70144838]
[1755755959674,2.86850945,188.47,188.45,3.70144838]
[1755755959675,3.58850945,188.47,188.45,3.70144838]
[1755755959998,0.72,188.46,188.44,3.70144838]
[1755755962700,3.58850945,188.47,188.44,3.70144838]
[1755755964585,3.58850945,188.47,188.45,3.70144838]
[1755755965700,0.72,188.46,188.44,3.70144838]
[1755755966272,3.58850945,188.47,188.45,3.70144838]
[1755755966494,0.72,188.46,188.45,3.70144838]
[1755755968087,3.58850945,188.47,188.45,3.70144838]
[1755755970606,3.58850945,188.47,188.44,0.7]
[1755755970922,2.86850945,188.47,188.44,0.7]
[1755755971216,3.58850945,188.47,188.44,0.7]
[1755755972575,0.72,188.46,188.41,3.06949996]
[1755755972779,0.72,188.46,188.42,0.7]
[1755755973174,0.72,188.46,188.43,0.7]
[1755755973376,2.76883226,188.45,188.43,0.7]
[1755755973988,2.76883226,188.45,188.44,0.7]
[1755755978095,2.76883226,188.45,188.42,3.06949996]
[1755755978289,2.76883226,188.45,188.42,2.36949996]
[1755755978489,2.76883226,188.45,188.43,0.7]
[1755755981119,2.76883226,188.45,188.44,0.7]
[1755755981613,0.1,188.47,188.44,0.7]
[1755755981810,0.78,188.46,188.42,3.06949996]
[1755755982324,0.72,188.45,188.42,3.06949996]
[1755755983121,0.78,188.46,188.43,0.7]
[1755755986422,0.78,188.46,188.41,39.60949996]
[1755755986724,0.78,188.46,188.42,0.7]
[1755755988627,0.78,188.46,188.44,26.0]
[1755755989807,0.78,188.46,188.43,0.7]
[1755755992222,0.72,188.45,188.42,26.7]
[1755755994827,0.06,188.46,188.41,40.32949996]
[1755755995021,0.66,188.45,188.42,0.72]
[1755756000232,0.66,188.44,188.41,37.24]
[1755756001065,0.72,188.46,188.42,3.08949996]
[1755756001366,0.72,188.46,188.43,0.72]
[1755756001533,0.72,188.46,188.41,39.60949996]
[1755756001534,0.66,188.45,188.42,0.72]
[1755756002146,2.76887268,188.44,188.42,0.72]
[1755756002351,2.76887268,188.44,188.43,2.36949996]
[1755756002549,0.06,188.46,188.43,0.72]
[1755756002859,2.76888318,188.44,188.41,117.02]
[1755756003355,2.76888318,188.44,188.41,79.8]
[1755756003561,0.66,188.43,188.4,37.25]
[1755756003850,2.36949996,188.41,188.4,0.03]